{"text_format":"1","workbook":"xlsx","n_sheets":4,"sheets":["Anleitung","Aktuelle_Leistung","Datenbank","Resultatliste"],"not_rendered":{"charts":0,"images":1,"macros":1,"external_links":0,"defined_names":0,"comments":1,"pivot_tables":0},"unopened":[],"bounds":{"document_bytes":16777216,"sheet_cells":100000,"rows_first":2000,"rows_last":500,"rows_between":2000,"halvings":0,"cell_chars":16384,"cell_head_chars":4096},"cells_cut":0,"cells_raw":0,"read":"whole","date_system":"1900"}

{"sheet":"Anleitung","index":0,"n_rows":26,"n_cols":4,"rows_kept":26,"cut":false,"hidden":false,"merged":[[9,1,9,18],[33,1,33,18]]}
[]
[null,"Tool \"Aktuelle Leistung\" - Anleitung"]
[null,"Alle folgenden Informationen sind auf dem Blatt \"Performance_Actuelle\" durchzuführen"]
[null,"!","Bitte nur die hellgrauen Zellen ausfüllen"]
[null,"! ","Bitte nur die Tabelle links ausfüllen (die Tabelle recht ist ein Beispiel)"]
[]
[null,"1.","Auf den Button \"Neuer Eintrag\" klicken, um alte Einträge zu löschen "]
[null,"2.","Athletendaten eintragen (Name, Vorname, Geburtsdatum)"]
[]
[null,"Leistungsindikatoren definiren"]
[null,"3.","Indikatoren für die Evaluation der aktuellen Leistung definieren (eine Definition pro Indikator)"]
[null,"4.","Anzahl der Parameter pro Indikator angeben (Drop-down Liste) (max 4)"]
[null,"5.","Parameter beschreiben (was, wie, max. Punkte, Gewichtung) - ein Beispiel befindet sich rechts"]
[null,null,"5.1.","Gewichtung: Jeder Parameter kann in Beziehung zu den anderen Parametern pro Indikator gewichtet werden"]
[null,"6.","Ein Indikator kann 1-4 Parameter enthalten"]
[]
[null,"7.","\"Gewichtung des Indikators (%)\" eintragen. Diesmal bezieht sich die Gewichtung auf den Indikators und nicht mehr auf dem Parameter."]
[null,"8.","\"Summe der Gewichtungen pro Indikator\" kontrollieren (Gesamtwert muss 100% ergeben, Feld wird weiss) "]
[]
[null,"9.","Die erreichten Punktzahlen können pro Athlet eingetragen werden"]
[null,"10.","Auf \"speichern\" klicken, dadurch wird das Resultat automatisch auf dem Blatt \"Base_de_données\" und auf dem Blatt \"Liste_Résultat\" abgespeichert. "]
[]
[null,"11.","Auf \"nächster Athlet\" klicken. Dadurch werden die erhaltenen Punkte und die personnelle Informationen gelöscht und es können die Daten des folgenden Athleten eingetragen werden. "]
[]
[null,"Autoren: Marie Javet & Michael Romann"]
[null,"Kontakt: Verbandssuport Swiss Olympic"]

{"sheet":"Aktuelle_Leistung","index":1,"n_rows":48,"n_cols":28,"rows_kept":48,"cut":false,"hidden":false,"merged":[[46,3,46,9],[47,3,47,9],[47,18,47,24],[9,18,10,18],[9,20,10,20],[9,22,10,22],[9,24,10,24],[46,18,46,24],[9,3,10,3],[9,5,10,5],[9,7,10,7],[9,9,10,9]]}
[]
[null,"Aktuelle Leistung",null,null,null,null,null,null,null,null,null,null,null,null,null,null,"Beispiel - Aktuelle Leistung"]
[null,"Bewertungsraster",null,null,null,null,null,null,null,null,null,null,null,null,null,null,"Bewertungsraster"]
[null,"Bitte ausschliesslich die hellgrauen Zellen ausfüllen",null,null,null,null,null,null,null,null,null,null,null,null,null,null,"Bitte ausschliesslich die hellgrauen Zellen ausfüllen"]
[]
[null,"Name:",null,null,null,"Geburtsdatum:",null,null,null,null,null,null,null,null,null,null,"Name:",null,"Smith",null,"Geburtsdatum:",null,"2000-12-31"]
[null,"Vorname:",null,null,null,"Testdatum:",null,null,null,null,null,null,null,null,null,null,"Vorname:",null,"John",null,"Testdatum:",null,"2018-06-06"]
[null,null,null,null,null,null,null,null,null,null,null,null,0,null,null,null,null,null,null,null,null,null,null,null,null,null,null,0]
[null,"Indikatoren",null,null,null,null,null,null,null,null,null,null,1,null,null,null,"Indikatoren",null,"physische Indikatoren",null,"Technisch Taktisch",null,"Wettkampfresultate",null,null,null,null,1]
[null,"definition",null,null,null,null,null,null,null,null,null,null,2,null,null,null,"definition",null,"gemessene Testparameter\n",null,"Beurteilung der Spielleistung\n",null,"können im Training, im Wettkampf, in sportartspezifischen Tests beobachtet werden\n",null,"können im Training, im Wettkampf, in sportartspezifischen Tests beobachtet werden\n",null,null,2]
[null,null,null,null,null,null,null,null,null,null,null,null,3,null,null,null,null,null,null,null,null,null,null,null,null,null,null,3]
[null,"Anzahl Parameter",null,0,null,0,null,0,null,0,null,null,4,null,null,null,"Anzahl Parameter",null,4,null,1,null,0,null,0,null,null,4]
[null,"Parameter",null,null,null,null,null,null,null,null,null,null,null,null,null,null,"Parameter",null,"Parameter 1",null,"Parameter 1",null,"Parameter 1",null,"Parameter 1"]
[null,"Was?",null,null,null,null,null,null,null,null,null,null,null,null,null,null,"Was?",null,"Sprinttest 10m",null,"TIPS (Technik, intelligenz, Personality, Schnelligkeit)"]
[null,"Wie?",null,null,null,null,null,null,null,null,null,null,null,null,null,null,"Wie?",null,"Messung mit dem Optojump System",null,"Bewertungsraster, Trainereinschätzung"]
[null,"Punktemaximum",null,null,null,null,null,null,null,null,null,null,null,null,null,null,"Punktemaximum",null,10,null,10]
[null,"erhaltene Punkte",null,null,null,null,null,null,null,null,null,null,null,null,null,null,"erhaltene Punkte",null,5,null,6]
[null,"Gewichtung (%)",null,null,null,null,null,null,null,null,null,null,null,null,null,null,"Gewichtung (%)",null,25,null,100]
[null,"Parameter",null,null,null,null,null,null,null,null,null,null,null,null,null,null,"Parameter",null,"Parameter 2",null,"Parameter 2",null,"Parameter 2",null,"Parameter 2"]
[null,"Was?",null,null,null,null,null,null,null,null,null,null,null,null,null,null,"Was?",null,"Sprinttest 30m"]
[null,"Wie?",null,null,null,null,null,null,null,null,null,null,null,null,null,null,"Wie?",null,"Messung mit dem Optojump System"]
[null,"Punktemaximum",null,null,null,null,null,null,null,null,null,null,null,null,null,null,"Punktemaximum",null,10]
[null,"erhaltene Punkte",null,null,null,null,null,null,null,null,null,null,null,null,null,null,"erhaltene Punkte",null,5]
[null,"Gewichtung (%)",null,null,null,null,null,null,null,null,null,null,null,null,null,null,"Gewichtung (%)",null,25]
[null,"Parameter",null,null,null,null,null,null,null,null,null,null,null,null,null,null,"Parameter",null,"Parameter 3",null,"Parameter 3",null,"Parameter 3",null,"Parameter 3"]
[null,"Was?",null,null,null,null,null,null,null,null,null,null,null,null,null,null,"Was?",null,"Yo-Yo Test"]
[null,"Wie?",null,null,null,null,null,null,null,null,null,null,null,null,null,null,"Wie?"]
[null,"Punktemaximum",null,null,null,null,null,null,null,null,null,null,null,null,null,null,"Punktemaximum",null,100]
[null,"erhaltene Punkte",null,null,null,null,null,null,null,null,null,null,null,null,null,null,"erhaltene Punkte",null,50]
[null,"Gewichtung (%)",null,null,null,null,null,null,null,null,null,null,null,null,null,null,"Gewichtung (%)",null,30]
[null,"Parameter",null,null,null,null,null,null,null,null,null,null,null,null,null,null,"Parameter",null,"Parameter 4",null,"Parameter 4",null,"Parameter 4",null,"Parameter 4"]
[null,"Was?",null,null,null,null,null,null,null,null,null,null,null,null,null,null,"Was?",null,"Pro Agility Shuttle Test"]
[null,"Wie?",null,null,null,null,null,null,null,null,null,null,null,null,null,null,"Wie?",null,"5 - 10 - 5"]
[null,"Punktemaximum",null,null,null,null,null,null,null,null,null,null,null,null,null,null,"Punktemaximum",null,10]
[null,"erhaltene Punkte",null,null,null,null,null,null,null,null,null,null,null,null,null,null,"erhaltene Punkte",null,3]
[null,"Gewichtung (%)",null,null,null,null,null,null,null,null,null,null,null,null,null,null,"Gewichtung (%)",null,20]
[]
[null,"Summe der Gewichtungen pro Indikator",null,{"$f":"SUM(D18,D24,D30,D36,)","v":0},null,{"$f":"SUM(F18,F24,F30,F36,)","v":0},null,{"$f":"SUM(H18,H24,H30,H36,)","v":0},null,{"$f":"SUM(J18,J24,J30,J36,)","v":0},null,null,null,null,null,null,"Summe der Gewichtungen pro Indikator",null,{"$f":"SUM(S18,S24,S30,S36,)","v":100},null,{"$f":"SUM(U18,U24,U30,U36,)","v":100},null,{"$f":"SUM(W18,W24,W30,W36,)","v":0},null,{"$f":"SUM(Y18,Y24,Y30,Y36,)","v":0}]
[]
[]
[null,"Punktzahl pro Indikator",null,null,null,null,null,null,null,null,null,null,null,null,null,null,"Punktzahl pro Indikator"]
[null,"Maximalpunktzahl (%)",null,{"$f":"SUM(D18,D24,D30,D36)","v":0},{"$f":"SUM(E18,E24,E30,E36)","v":0},0,0,0,0,0,null,null,null,null,null,null,"Maximalpunktzahl (%)",null,{"$f":"S18+S24+S30+S36","v":100},null,{"$f":"U18+U24+U30+U36","v":100},null,{"$f":"W18+W24+W30+W36","v":0},null,{"$f":"Y18+Y24+Y30+Y36","v":0},null,{"$f":"COUNTIF(S42:Y42,\">0\")","v":2}]
[null,"erhaltene Punktzahl (%)",null,{"$f":"IF(D12=0,0,IF(D12=1,(D17/D16)*100,IF(D12=2,((D17/D16)*(D18/100)*100)+((D23/D22)*(D24/100)*100),IF(D12=3,((D17/D16)*(D18/100)*100)+((D23/D22)*(D24/100)*100)+((D29/D28)*(D30/100)*100),IF(D12=4,((D17/D16)*(D18/100)*100)+((D23/D22)*(D24/100)*100)+((D29/D28)*(D30/100)*100)+((D35/D34)*(D36/100)*100))))))","v":0},null,{"$f":"IF(F12=0,0,IF(F12=1,(F17/F16)*100,IF(F12=2,((F17/F16)*(F18/100)*100)+((F23/F22)*(F24/100)*100),IF(F12=3,((F17/F16)*(F18/100)*100)+((F23/F22)*(F24/100)*100)+((F29/F28)*(F30/100)*100),IF(F12=4,((F17/F16)*(F18/100)*100)+((F23/F22)*(F24/100)*100)+((F29/F28)*(F30/100)*100)+((F35/F34)*(F36/100)*100))))))","v":0},null,0,null,0,null,null,null,null,null,null,"erhaltene Punktzahl (%)",null,{"$f":"IF(S12=0,0,IF(S12=1,(S17/S16)*100,IF(S12=2,((S17/S16)*(S18/100)*100)+((S23/S22)*(S24/100)*100),IF(S12=3,((S17/S16)*(S18/100)*100)+((S23/S22)*(S24/100)*100)+((S29/S28)*(S30/100)*100),IF(S12=4,((S17/S16)*(S18/100)*100)+((S23/S22)*(S24/100)*100)+((S29/S28)*(S30/100)*100)+((S35/S34)*(S36/100)*100))))))","v":46},null,{"$f":"IF(U12=0,0,IF(U12=1,(U17/U16)*100,IF(U12=2,((U17/U16)*(U18/100)*100)+((U23/U22)*(U24/100)*100),IF(U12=3,((U17/U16)*(U18/100)*100)+((U23/U22)*(U24/100)*100)+((U29/U28)*(U30/100)*100),IF(U12=4,((U17/U16)*(U18/100)*100)+((U23/U22)*(U24/100)*100)+((U29/U28)*(U30/100)*100)+((U35/U34)*(U36/100)*100))))))","v":60},null,{"$f":"IF(W12=0,0,IF(W12=1,(W17/W16)*100,IF(W12=2,((W17/W16)*(W18/100)*100)+((W23/W22)*(W24/100)*100),IF(W12=3,((W17/W16)*(W18/100)*100)+((W23/W22)*(W24/100)*100)+((W29/W28)*(W30/100)*100),IF(W12=4,((W17/W16)*(W18/100)*100)+((W23/W22)*(W24/100)*100)+((W29/W28)*(W30/100)*100)+((W35/W34)*(W36/100)*100))))))","v":0},null,0]
[]
[null,"Gewichtung der Indikatoren (%)",null,null,null,null,null,null,null,null,null,"-->",1,{"$f":"CONCATENATE(\"Summe der Gewichtungen\",\" = \",SUM(D45,F45,H45,J45))","v":"Summe der Gewichtungen = 0"},{"$f":"COUNTIF(D45:J45,\">0\")","v":0},null,"Gewichtung der Indikatoren (%)",null,40,null,60,null,null,null,null,null,{"$f":"CONCATENATE(\"Summe der Gewichtungen\",\" = \",SUM(S45,U45,W45,Y45))","v":"Summe der Gewichtungen = 100"},{"$f":"COUNTIF(S45:Y45,\">0\")","v":2}]
[null,null,null,null,null,null,null,null,null,null,null,null,2,"\nMUSS 100 SEIN !!!",null,null,null,null,null,null,null,null,null,null,null,null,"MUSS 100 SEIN !!!"]
[null,"Maximalpunktzahl",null,{"$f":"SUM(D45,F45,H45,J45)","v":0},null,null,null,null,null,null,null,null,null,null,null,null,"Maximalpunktzahl",null,{"$f":"SUM(S45:Y45)","v":100}]
[null,"Gesamtpunktzahl",null,{"$f":"IF(O45=1,((D43/D42)*(D45/100)*100),IF(O45=2,((D43/D42)*(D45/100)*100)+((F43/F42)*(F45/100)*100),IF(O45=3,((D43/D42)*(D45/100)*100)+((F43/F42)*(F45/100)*100)+((H43/H42)*(H45/100)*100),IF(O45=4,((D43/D42)*(D45/100)*100)+((F43/F42)*(F45/100)*100)+((H43/H42)*(H45/100)*100)+((J43/J42)*(J45/100)*100)))))","v":false},null,null,null,null,null,null,null,null,null,null,null,null,"Gesamtpunktzahl",null,{"$f":"IF(AB45=1,((S43/S42)*(S45/100)*100),IF(AB45=2,((S43/S42)*(S45/100)*100)+((U43/U42)*(U45/100)*100),IF(AB45=3,((S43/S42)*(S45/100)*100)+((U43/U42)*(U45/100)*100)+((W43/W42)*(W45/100)*100),IF(AB45=4,((S43/S42)*(S45/100)*100)+((U43/U42)*(U45/100)*100)+((W43/W42)*(W45/100)*100)+((Y43/Y42)*(Y45/100)*100)))))","v":54.400000000000006}]

{"sheet":"Datenbank","index":2,"n_rows":1,"n_cols":66,"rows_kept":1,"cut":false,"hidden":false,"merged":[]}
["Name","Vorname","Geburtsdatum ","Testdatum","Gesamtpunktzahl","Maximalpunktzahl",{"$f":"CONCATENATE(Aktuelle_Leistung!$D$14,\" - \",\"Maximalpunktzahl\")","v":" - Maximalpunktzahl"},{"$f":"CONCATENATE(Aktuelle_Leistung!$D$14,\" - \",\"erhaltene Punkte / erhaltene Punktzahl\")","v":" - erhaltene Punkte / erhaltene Punktzahl"},{"$f":"CONCATENATE(Aktuelle_Leistung!$D$14,\" - \",\"Gewichtung\")","v":" - Gewichtung"},{"$f":"CONCATENATE(Aktuelle_Leistung!$D$20,\" - \",\"Maximalpunktzahl\")","v":" - Maximalpunktzahl"},{"$f":"CONCATENATE(Aktuelle_Leistung!$D$20,\" - \",\"erhaltene Punkte\")","v":" - erhaltene Punkte"},{"$f":"CONCATENATE(Aktuelle_Leistung!$D$20,\" - \",\"Gewichtung\")","v":" - Gewichtung"},{"$f":"CONCATENATE(Aktuelle_Leistung!$D$26,\" - \",\"Maximalpunktzahl\")","v":" - Maximalpunktzahl"},{"$f":"CONCATENATE(Aktuelle_Leistung!$D$26,\" - \",\"erhaltene Punkte\")","v":" - erhaltene Punkte"},{"$f":"CONCATENATE(Aktuelle_Leistung!$D$26,\" - \",\"Gewichtung\")","v":" - Gewichtung"},{"$f":"CONCATENATE(Aktuelle_Leistung!$D$32,\" - \",\"Maximalpunktzahl\")","v":" - Maximalpunktzahl"},{"$f":"CONCATENATE(Aktuelle_Leistung!$D$32,\" - \",\"erhaltene Punkte\")","v":" - erhaltene Punkte"},{"$f":"CONCATENATE(Aktuelle_Leistung!$D$32,\" - \",\"Gewichtung\")","v":" - Gewichtung"},"Maximalpunktzahl des Indikators","Anzahlpunkt pro Indikator - Erhaltene Punktanzahl","Gewichtung der Indikator",{"$f":"CONCATENATE(Aktuelle_Leistung!$F$14,\" - \",\"Maximalpunktzahl\")","v":" - Maximalpunktzahl"},{"$f":"CONCATENATE(Aktuelle_Leistung!$F$14,\" - \",\"erhaltene Punkte\")","v":" - erhaltene Punkte"},{"$f":"CONCATENATE(Aktuelle_Leistung!$F$14,\" - \",\"Gewichtung\")","v":" - Gewichtung"},{"$f":"CONCATENATE(Aktuelle_Leistung!$F$20,\" - \",\"Maximalpunktzahl\")","v":" - Maximalpunktzahl"},{"$f":"CONCATENATE(Aktuelle_Leistung!$F$20,\" - \",\"erhaltene Punkte\")","v":" - erhaltene Punkte"},{"$f":"CONCATENATE(Aktuelle_Leistung!$F$20,\" - \",\"pGewichtung\")","v":" - pGewichtung"},{"$f":"CONCATENATE(Aktuelle_Leistung!$F$26,\" - \",\"Maximalpunktzahl\")","v":" - Maximalpunktzahl"},{"$f":"CONCATENATE(Aktuelle_Leistung!$F$26,\" - \",\"erhaltene Punkte\")","v":" - erhaltene Punkte"},{"$f":"CONCATENATE(Aktuelle_Leistung!$F$26,\" - \",\"Gewichtung\")","v":" - Gewichtung"},{"$f":"CONCATENATE(Aktuelle_Leistung!$F$32,\" - \",\"Maximalpunktzahl\")","v":" - Maximalpunktzahl"},{"$f":"CONCATENATE(Aktuelle_Leistung!$F$32,\" - \",\"erhaltene Punkte\")","v":" - erhaltene Punkte"},{"$f":"CONCATENATE(Aktuelle_Leistung!$F$32,\" - \",\"Gewichtung\")","v":" - Gewichtung"},"Maximalpunktzahl des Indikators","Anzahlpunkt pro Indikator - Erhaltene Punktanzahl","Gewichtung der Indikator",{"$f":"CONCATENATE(Aktuelle_Leistung!$H$14,\" - \",\"Maximalpunktzahl\")","v":" - Maximalpunktzahl"},{"$f":"CONCATENATE(Aktuelle_Leistung!$H$14,\" - \",\"erhaltene Punkte\")","v":" - erhaltene Punkte"},{"$f":"CONCATENATE(Aktuelle_Leistung!$H$14,\" - \",\"Gewichtung\")","v":" - Gewichtung"},{"$f":"CONCATENATE(Aktuelle_Leistung!$H$20,\" - \",\"Maximalpunktzahl\")","v":" - Maximalpunktzahl"},{"$f":"CONCATENATE(Aktuelle_Leistung!$H$20,\" - \",\"erhaltene Punkte\")","v":" - erhaltene Punkte"},{"$f":"CONCATENATE(Aktuelle_Leistung!$H$20,\" - \",\"Gewichtung\")","v":" - Gewichtung"},{"$f":"CONCATENATE(Aktuelle_Leistung!$H$26,\" - \",\"Maximalpunktzahl\")","v":" - Maximalpunktzahl"},{"$f":"CONCATENATE(Aktuelle_Leistung!$H$26,\" - \",\"erhaltene Punkte\")","v":" - erhaltene Punkte"},{"$f":"CONCATENATE(Aktuelle_Leistung!$H$26,\" - \",\"Gewichtung\")","v":" - Gewichtung"},{"$f":"CONCATENATE(Aktuelle_Leistung!$H$32,\" - \",\"Maximalpunktzahl\")","v":" - Maximalpunktzahl"},{"$f":"CONCATENATE(Aktuelle_Leistung!$H$32,\" - \",\"erhaltene Punkte\")","v":" - erhaltene Punkte"},{"$f":"CONCATENATE(Aktuelle_Leistung!$H$32,\" - \",\"Gewichtung\")","v":" - Gewichtung"},"Maximalpunktzahl des Indikators","Anzahlpunkt pro Indikator - Erhaltene Punktanzahl","Gewichtung der Indikator",{"$f":"CONCATENATE(Aktuelle_Leistung!$J$14,\" - \",\"max de pts / Maximalpunktzahl\")","v":" - max de pts / Maximalpunktzahl"},{"$f":"CONCATENATE(Aktuelle_Leistung!$J$14,\" - \",\"erhaltene Punkte\")","v":" - erhaltene Punkte"},{"$f":"CONCATENATE(Aktuelle_Leistung!$J$14,\" - \",\"Gewichtung\")","v":" - Gewichtung"},{"$f":"CONCATENATE(Aktuelle_Leistung!$J$20,\" - \",\"Maximalpunktzahl\")","v":" - Maximalpunktzahl"},{"$f":"CONCATENATE(Aktuelle_Leistung!$J$20,\" - \",\"erhaltene Punkte\")","v":" - erhaltene Punkte"},{"$f":"CONCATENATE(Aktuelle_Leistung!$J$20,\" - \",\"Gewichtung\")","v":" - Gewichtung"},{"$f":"CONCATENATE(Aktuelle_Leistung!$J$26,\" - \",\"Maximalpunktzahl\")","v":" - Maximalpunktzahl"},{"$f":"CONCATENATE(Aktuelle_Leistung!$J$26,\" - \",\"erhaltene Punkte\")","v":" - erhaltene Punkte"},{"$f":"CONCATENATE(Aktuelle_Leistung!$J$26,\" - \",\"Gewichtung\")","v":" - Gewichtung"},{"$f":"CONCATENATE(Aktuelle_Leistung!$J$32,\" - \",\"Maximalpunktzahl\")","v":" - Maximalpunktzahl"},{"$f":"CONCATENATE(Aktuelle_Leistung!$J$32,\" - \",\"erhaltene Punkte\")","v":" - erhaltene Punkte"},{"$f":"CONCATENATE(Aktuelle_Leistung!$J$32,\" - \",\"Gewichtung\")","v":" - Gewichtung"},"Maximalpunktzahl des Indikators","Anzahlpunkt pro Indikator - Erhaltene Punktanzahl","Gewichtung der Indikator"]

{"sheet":"Resultatliste","index":3,"n_rows":1,"n_cols":5,"rows_kept":1,"cut":false,"hidden":false,"merged":[]}
["Name","Vorname","Geburtsdatum","Testdatum","Gesamtpunktzahl"]